bitfinex/quotes_ETHUSD_20251130
["timestamp","ask_amount","ask_price","bid_price","bid_amount"]
[1764494252876,0.102,3012.7,3012.6,0.4597]
[1764494253076,0.002,3012.7,3012.6,0.9224]
[1764494254785,0.002,3012.7,3012.6,0.4597]
[1764494256019,0.81981843,3012.7,3012.5,0.001]
[1764494256388,0.91981843,3012.7,3012.5,0.001]
[1764494256717,0.0413,3012.6,3012.5,0.001]
[1764494256899,0.45541843,3012.7,3012.5,0.001]
[1764494257224,3.77474989,3012.7,3012.6,0.4597]
[1764494257527,0.002,3012.7,3012.6,0.9224]
[1764494261314,0.002,3012.7,3012.6,4.24179188]
[1764494262033,0.002,3012.7,3012.6,0.9224]
[1764494263431,0.002,3012.7,3012.6,0.4597]
[1764494264441,0.4664,3012.7,3012.5,0.001]
[1764494264618,0.1789,3012.6,3012.5,0.001]
[1764494268834,0.211,3012.6,3012.5,0.001]
[1764494269750,4.46009188,3012.6,3012.5,0.001]
[1764494270241,5.00630107,3012.6,3012.5,0.001]
[1764494270814,6.13739918,3012.6,3012.5,0.001]
[1764494279352,6.23739918,3012.6,3012.5,0.001]
[1764494280244,6.13739918,3012.6,3012.5,0.001]
[1764494280949,5.92639918,3012.6,3012.5,0.001]
[1764494281156,6.13739918,3012.6,3012.5,0.001]
[1764494281758,6.23739918,3012.6,3012.5,0.001]
[1764494281953,6.13739918,3012.6,3012.5,0.001]
[1764494283124,6.27045287,3012.6,3012.5,0.001]
[1764494283456,6.27245287,3012.6,3012.5,0.001]
[1764494286849,9.77145287,3012.6,3012.5,0.001]
[1764494287068,9.87145287,3012.6,3012.5,0.001]
[1764494288069,16.23145287,3012.6,3012.5,0.001]
[1764494288262,21.84736587,3012.6,3012.5,0.001]
[1764494288458,20.24086187,3012.6,3012.5,0.001]
[1764494289248,16.23145287,3012.6,3012.5,0.001]
[1764494289552,27.85432887,3012.6,3012.5,0.001]
[1764494289753,27.50419087,3012.6,3012.5,0.001]
[1764494290163,26.88317687,3012.6,3012.5,0.001]
[1764494290643,16.23145287,3012.6,3012.5,0.001]
[1764494290838,21.76612787,3012.6,3012.5,0.001]
[1764494291476,22.73214387,3012.6,3012.5,0.001]
[1764494291898,22.52114387,3012.6,3012.5,0.001]
[1764494292076,22.73214387,3012.6,3012.5,0.001]
[1764494292445,23.87510187,3012.6,3012.5,0.001]
[1764494292646,22.89835887,3012.6,3012.5,0.001]
[1764494292878,22.25330687,3012.6,3012.5,0.001]
[1764494293503,23.17540387,3012.6,3012.5,0.001]
[1764494294397,16.23145287,3012.6,3012.5,0.001]
[1764494294598,23.92084087,3012.6,3012.5,0.001]
[1764494294897,23.16576687,3012.6,3012.5,0.001]
[1764494295612,24.36966387,3012.6,3012.5,0.001]
[1764494295808,16.23145287,3012.6,3012.5,0.001]
[1764494296009,28.56289387,3012.6,3012.5,0.001]
[1764494296181,27.18979387,3012.6,3012.5,0.001]
[1764494296381,24.58033887,3012.6,3012.5,0.001]
[1764494296685,24.58033887,3012.6,3012.0,1e-08]
[1764494296686,10.874713,3012.1,3012.0,1e-08]
[1764494296891,15.02958353,3012.1,3012.0,1e-08]
[1764494297218,15.6280691,3012.1,3012.0,1e-08]
[1764494297578,15.4259841,3012.1,3012.0,1e-08]
[1764494298107,11.6198941,3012.1,3012.0,1e-08]
[1764494298308,6.97554951,3012.1,3012.0,1e-08]
[1764494298684,10.2954924,3012.1,3012.0,1e-08]
[1764494298888,15.7970514,3012.1,3012.0,1e-08]
[1764494299100,18.8744284,3012.1,3012.0,1e-08]
[1764494300346,18.9744284,3012.1,3012.0,1e-08]
[1764494300540,18.8744284,3012.1,3012.0,1e-08]
[1764494304138,10.97524798,3012.1,3012.0,1e-08]
[1764494304350,9.8787884,3012.1,3012.0,1e-08]
[1764494304542,10.2842924,3012.1,3012.0,1e-08]
[1764494304847,9.7300924,3012.1,3012.0,1e-08]
[1764494305137,10.1842924,3012.1,3012.0,1e-08]
[1764494305441,9.7300924,3012.1,3012.0,1e-08]
[1764494305650,10.1842924,3012.1,3012.0,1e-08]
[1764494306739,9.9732924,3012.1,3012.0,1e-08]
[1764494307040,10.1842924,3012.1,3012.0,1e-08]
[1764494307339,9.7300924,3012.1,3012.0,1e-08]
[1764494307553,9.5190924,3012.1,3012.0,1e-08]
[1764494307715,9.7300924,3012.1,3012.0,1e-08]
[1764494308112,9.0643924,3012.1,3012.0,0.49470001]
[1764494308316,9.2753924,3012.1,3012.0,1e-08]
[1764494308540,9.7299924,3012.1,3012.0,1e-08]
[1764494309740,9.2753924,3012.1,3012.0,1e-08]
[1764494310028,9.7299924,3012.1,3012.0,1e-08]
[1764494310529,9.2753924,3012.1,3012.0,1e-08]
[1764494311334,9.2753924,3012.1,3012.0,0.49470001]
[1764494311536,9.2753924,3012.1,3012.0,0.98770001]
[1764494312112,9.0643924,3012.1,3012.0,0.49470001]
[1764494312434,9.14230683,3012.1,3012.0,0.98770001]
[1764494313410,8.93130683,3012.1,3012.0,0.49470001]
[1764494313607,9.59690683,3012.1,3012.0,1e-08]
[1764494313812,10.05110683,3012.1,3012.0,1e-08]
[1764494314012,9.59690683,3012.1,3012.0,1e-08]
[1764494315020,10.05110683,3012.1,3012.0,1e-08]
[1764494316241,10.15110683,3012.1,3012.0,1e-08]
[1764494317616,9.24230683,3012.1,3012.0,1e-08]
[1764494317818,9.14230683,3012.1,3012.0,1e-08]
[1764494318114,10.05110683,3012.1,3012.0,1e-08]
[1764494318736,10.18418044,3012.1,3012.0,1e-08]
[1764494318929,9.73198044,3012.1,3012.0,1e-08]
[1764494319155,10.28618044,3012.1,3012.0,1e-08]
[1764494321221,10.18618044,3012.1,3012.0,1e-08]
[1764494322837,13.68518044,3012.1,3012.0,1e-08]
[1764494323043,13.78518044,3012.1,3012.0,1e-08]
[1764494323548,4.83009811,3012.0,3011.6,0.001]
[1764494323756,23.62166963,3012.0,3011.6,0.001]
[1764494324448,23.75476494,3012.0,3011.6,0.001]
[1764494324656,22.32153994,3012.0,3011.6,0.001]
[1764494325543,24.77761506,3012.0,3011.6,0.001]
[1764494325732,20.90638906,3012.0,3011.6,0.001]
[1764494325927,21.46058906,3012.0,3011.6,0.001]
[1764494327230,18.00922406,3012.0,3011.6,0.001]
[1764494327430,23.06418606,3012.0,3011.6,0.001]
[1764494328949,22.96418606,3012.0,3011.6,0.001]
[1764494329151,23.17518606,3012.0,3011.6,0.001]
[1764494330552,18.60548206,3012.0,3011.6,0.001]
[1764494330754,17.77094206,3012.0,3011.6,0.001]
[1764494330946,18.17644606,3012.0,3011.6,0.494]
[1764494331146,14.16702406,3012.0,3011.6,0.494]
[1764494331347,13.96752406,3012.0,3011.9,0.4957]
[1764494331542,13.96752406,3012.0,3011.9,0.9887]
[1764494331947,13.96752406,3012.0,3011.9,0.4957]
[1764494332762,13.75652406,3012.0,3011.9,0.4957]
[1764494332961,13.96752406,3012.0,3011.9,0.4957]
[1764494333462,13.86752406,3012.0,3011.9,0.9775]
[1764494333670,13.96752406,3012.0,3011.9,0.9775]
[1764494334147,13.75652406,3012.0,3011.9,0.9775]
[1764494334339,13.83442875,3012.0,3011.9,0.9775]
[1764494335359,13.83442875,3012.0,3011.9,0.8644]
[1764494336965,13.83442875,3012.0,3011.9,0.8654]
[1764494337164,13.83642875,3012.0,3011.9,0.8654]
[1764494339081,11.12415123,3012.0,3011.9,0.8654]
[1764494339280,4.04764723,3012.0,3011.9,0.8654]
[1764494339443,4.25864723,3012.0,3011.9,0.8654]
[1764494340169,4.04764723,3012.0,3011.9,0.8654]
[1764494340353,4.25864723,3012.0,3011.9,0.8654]
[1764494340738,0.002,3012.0,3011.9,0.8654]
[1764494340936,0.213,3012.0,3011.9,0.8654]
[1764494341159,3.53305312,3012.0,3011.9,0.8654]
[1764494341865,0.002,3012.0,3011.9,0.8654]
[1764494342065,0.213,3012.0,3011.9,0.8654]
[1764494342239,3.53305312,3012.0,3011.9,0.8654]
[1764494342567,0.213,3012.0,3011.9,0.8654]
[1764494343139,3.53305312,3012.0,3011.9,0.8654]
[1764494343662,0.213,3012.0,3011.9,0.8654]
[1764494343968,3.63305312,3012.0,3011.9,0.8654]
[1764494344540,0.313,3012.0,3011.9,0.8654]
[1764494344757,0.213,3012.0,3011.9,0.8654]
[1764494346777,0.213,3012.0,3011.9,1.28396881]
[1764494348050,0.002,3012.0,3011.9,1.28396881]
[1764494348376,0.002,3012.0,3011.9,0.8654]
[1764494350072,0.002,3012.5,3012.0,0.4818]
[1764494350274,0.002,3012.8,3012.5,0.4525]
[1764494350473,0.002,3012.8,3012.6,4.25369188]
[1764494350657,0.002,3012.8,3012.6,5.33285574]
[1764494350848,0.002,3012.8,3012.6,5.46582628]
[1764494351241,0.002,3013.0,3012.8,0.4525]
[1764494351449,0.002,3013.0,3012.9,0.4525]
[1764494351974,0.002,3013.0,3012.9,0.9343]
[1764494352346,0.002,3013.0,3012.9,1.3495737]
[1764494352546,0.002,3013.0,3012.9,4.66863506]
[1764494353172,0.002,3013.0,3012.9,1.3495737]
[1764494353777,0.002,3013.0,3012.9,0.9343]
[1764494356649,3.77623697,3013.0,3012.5,0.4818]
[1764494356845,3.77623697,3013.0,3012.6,0.4818]
[1764494357250,3.32043697,3013.0,3012.9,0.4525]
[1764494357476,0.102,3013.0,3012.9,0.4525]
[1764494357673,3.22043697,3013.0,3012.4,0.4818]
[1764494357873,3.22043697,3013.0,3012.6,0.4818]
[1764494358175,0.1,3012.9,3012.6,0.4818]
[1764494358381,0.211,3012.8,3012.6,0.4818]
[1764494358881,3.53017153,3012.8,3012.7,0.4525]
[1764494359278,3.32105782,3013.0,3012.7,0.9343]
[1764494359582,0.211,3012.8,3012.7,0.4818]
[1764494359755,0.211,3012.8,3012.3,0.0751]
[1764494359954,0.211,3012.8,3012.7,0.4525]
[1764494360476,0.211,3012.8,3012.7,0.9343]
[1764494360677,0.211,3012.8,3012.7,0.4525]
[1764494360862,3.53017153,3012.8,3012.7,0.4525]
[1764494361952,0.211,3012.8,3012.7,0.4525]
[1764494362153,0.211,3012.8,3012.7,0.9343]
[1764494362574,3.53017153,3012.8,3012.7,0.9343]
[1764494362784,0.211,3012.8,3012.7,0.9343]
[1764494363081,3.53017153,3012.8,3012.7,0.9343]
[1764494363681,0.211,3012.8,3012.7,0.9343]
[1764494363875,3.80275413,3013.0,3012.7,0.9343]
[1764494364085,0.211,3012.9,3012.3,0.44097086]
[1764494364271,0.211,3012.9,3012.5,0.4752]
[1764494364469,0.211,3012.9,3012.8,0.4914]
[1764494364872,0.211,3012.9,3012.8,0.9666]
[1764494365054,0.002,3013.0,3012.8,0.9666]
[1764494365257,0.002,3013.0,3012.9,0.9666]
[1764494365258,3.32099455,3013.0,3012.9,0.9666]
[1764494365477,3.53199455,3013.0,3012.9,0.9666]
[1764494367559,0.213,3013.0,3012.9,0.9666]
[1764494369365,3.53195121,3013.0,3012.9,0.9666]
[1764494369765,3.53195121,3013.0,3012.3,0.0751]
[1764494369766,0.1,3012.9,3012.3,0.5729]
[1764494369965,0.1,3012.9,3012.4,0.4978]
[1764494370187,0.1,3012.9,3012.8,0.4795]
[1764494370862,0.311,3012.9,3012.8,0.4795]
[1764494371692,3.63006136,3012.9,3012.8,0.4795]
[1764494376373,3.63006136,3012.9,3012.6,0.4988]
[1764494376374,6.94912272,3012.9,3012.6,0.4988]
[1764494376574,6.94912272,3012.9,3012.6,0.001]
[1764494376994,0.4631,3013.0,3012.8,3.69793697]
[1764494376995,0.002,3013.0,3012.8,3.69793697]
[1764494377194,0.002,3013.0,3012.9,1.3968737]
[1764494378190,0.002,3013.0,3012.9,1.52984733]
[1764494378366,0.002,3013.0,3012.9,4.84890869]
[1764494378894,0.002,3013.0,3012.9,1.52984733]
[1764494379064,0.002,3013.0,3012.9,0.9773]
[1764494381607,0.002,3013.0,3012.9,4.29636136]
[1764494381904,0.002,3013.0,3012.9,4.32955197]
[1764494382093,0.002,3013.0,3012.9,4.29636136]
[1764494382600,0.002,3013.0,3012.9,0.9773]
[1764494382784,0.002,3013.0,3012.9,1.42023682]
[1764494383668,0.002,3013.0,3012.9,4.73929818]
[1764494384069,0.002,3013.0,3012.9,4.77248879]
[1764494386172,0.002,3013.0,3012.9,1.45342743]
[1764494386379,0.002,3013.0,3012.9,0.9773]
[1764494386584,0.002,3013.0,3012.9,4.29636136]
[1764494387087,0.002,3013.0,3012.9,4.32955197]
[1764494387706,0.002,3013.0,3012.9,4.29636136]
[1764494388115,0.002,3013.0,3012.8,0.13297408]
[1764494388338,0.002,3013.0,3012.9,0.4795]
[1764494388700,0.002,3013.0,3012.9,1.01049061]
[1764494389382,0.002,3013.0,3012.9,0.9773]
[1764494389986,0.002,3013.0,3012.9,1.01049061]
[1764494390227,0.002,3013.0,3012.9,4.32955197]
[1764494390530,0.002,3013.0,3012.9,4.76261618]
[1764494392490,0.002,3013.0,3012.9,4.72942557]
[1764494392888,0.002,3013.0,3012.9,5.48821029]
[1764494394389,0.002,3013.0,3012.9,5.62117862]
[1764494396437,0.002,3013.0,3012.9,9.04961559]
[1764494396605,0.002,3013.0,3012.9,9.01642498]
[1764494397219,0.002,3013.0,3012.9,9.42192898]
[1764494401054,0.002,3013.0,3012.9,5.79798801]
[1764494403512,0.002,3013.0,3012.9,5.66501968]
[1764494406394,0.002,3013.0,3012.9,5.66601968]
[1764494410937,0.002,3013.7,3013.3,0.871404]
[1764494411233,0.002,3013.7,3013.5,4.81156541]
[1764494411404,0.002,3013.7,3013.5,8.12996594]
[1764494411619,0.002,3013.7,3013.5,8.59546594]
[1764494412021,0.002,3013.7,3013.5,8.72837816]
[1764494412218,0.002,3013.7,3013.5,9.95406696]
[1764494412638,0.002,3013.7,3013.5,6.73949966]
[1764494413940,0.002,3013.7,3013.5,6.27399966]
[1764494414136,0.002,3013.7,3013.5,6.73949966]
[1764494414437,0.002,3013.7,3013.5,4.67700155]
[1764494414438,0.3996,3013.6,3013.5,4.67700155]
[1764494414626,0.8693,3013.6,3013.0,3.31886681]
[1764494414826,0.1973,3013.5,3013.1,0.03318841]
[1764494415028,0.667,3013.5,3013.1,0.75878252]
[1764494415345,0.002,3013.6,3013.4,0.72559411]
[1764494415522,0.002,3013.6,3013.5,0.033184]
[1764494416110,0.465,3013.6,3013.5,0.033184]
[1764494416341,0.002,3013.6,3013.5,0.499084]
[1764494416538,0.002,3013.6,3013.5,0.033184]
[1764494417730,0.002,3013.6,3013.5,3.35158453]
[1764494417931,0.002,3013.6,3013.5,5.6965858]
[1764494420160,0.002,3013.6,3013.5,5.1979018]
[1764494420393,0.002,3013.6,3013.5,5.2310858]
[1764494420534,0.002,3013.6,3013.5,5.6965858]
[1764494422066,0.002,3013.6,3013.5,4.7651858]
[1764494422258,0.4974,3013.6,3013.5,4.7320018]
[1764494423034,0.002,3013.6,3013.5,5.2161018]
[1764494423235,0.002,3013.6,3013.5,5.7084018]
[1764494424284,0.002,3013.6,3013.5,5.2161018]
[1764494424586,0.9182,3013.6,3013.5,4.7320018]
[1764494424802,0.9182,3013.6,3013.5,4.04399464]
[1764494425289,0.002,3013.6,3013.5,4.52809464]
[1764494425784,0.002,3013.6,3013.5,5.05357864]
[1764494426150,0.002,3013.6,3013.5,4.56127864]
[1764494426367,0.002,3013.6,3013.5,5.41958722]
[1764494428094,0.002,3013.6,3013.5,5.91188722]
[1764494429188,0.002,3013.6,3013.5,5.41958722]
[1764494432400,0.002,3013.6,3013.5,5.91188722]
[1764494432796,0.002,3013.6,3013.5,6.04481534]
[1764494436398,0.002,3013.6,3013.5,6.45031934]
[1764494439476,0.002,3013.6,3013.5,6.41713534]
[1764494443069,0.002,3013.6,3013.5,6.01163134]
[1764494443270,0.002,3013.6,3013.5,6.04481534]
[1764494443473,0.002,3013.6,3013.5,6.45031934]
[1764494447715,0.002,3013.6,3013.5,5.92483534]
[1764494448205,0.002,3013.6,3013.5,6.45031934]
[1764494449605,0.002,3013.6,3013.5,5.44073534]
[1764494449809,0.4681,3013.6,3013.5,5.44073534]
[1764494450009,0.002,3013.6,3013.5,5.44073534]
[1764494450308,0.002,3013.6,3013.5,5.92483534]
[1764494451507,0.4681,3013.6,3013.5,5.44073534]
[1764494451700,0.002,3013.6,3013.5,5.44073534]
[1764494451901,0.002,3013.6,3013.5,5.92483534]
[1764494455285,0.002,3013.6,3013.5,5.44073534]
[1764494455485,0.4958,3013.6,3013.5,5.44073534]
[1764494457219,0.002,3013.6,3013.5,6.35543534]
[1764494457382,0.002,3013.6,3013.5,5.90243534]
[1764494457712,0.002,3013.6,3013.5,5.44073534]
[1764494458294,0.4958,3013.6,3013.5,5.44073534]
[1764494460714,0.9805,3013.6,3013.5,5.03523134]
[1764494460907,0.9805,3013.6,3013.5,4.17692276]
[1764494464030,0.9805,3013.6,3013.5,4.04399464]
[1764494464226,0.4958,3013.6,3013.5,4.04399464]
[1764494464632,0.4958,3013.6,3013.5,7.25681231]
[1764494467327,0.002,3013.6,3013.5,7.25681231]
[1764494467531,0.002,3013.6,3013.5,8.38502425]
[1764494468217,0.002,3013.6,3013.5,8.84672425]
[1764494470756,0.002,3013.6,3013.5,9.70522825]
[1764494471106,0.002,3013.6,3013.5,9.83813119]
[1764494478224,0.002,3013.6,3013.5,13.72813119]
[1764494480054,0.002,3013.6,3013.5,13.27513119]
[1764494480959,0.002,3013.6,3013.5,13.72813119]
[1764494482559,0.002,3013.6,3013.5,9.83813119]
[1764494482738,0.002,3013.6,3013.5,9.38513119]
[1764494483933,0.9961,3013.6,3013.5,8.51792719]
[1764494484134,0.9961,3013.6,3013.5,9.13343119]
[1764494485268,0.9961,3013.6,3013.5,4.38689758]
[1764494485763,0.9961,3013.6,3013.5,7.59971525]
[1764494486740,0.9961,3013.6,3013.5,4.25399464]
[1764494488164,0.002,3013.6,3013.5,7.46681231]
[1764494488468,0.9961,3013.6,3013.5,7.46681231]
[1764494490152,0.002,3013.6,3013.5,7.46681231]
[1764494490771,0.5,3013.6,3013.5,7.46681231]
[1764494492994,0.9961,3013.6,3013.5,7.46681231]
[1764494495778,0.9961,3013.6,3013.5,4.25399464]
[1764494497386,0.9961,3013.6,3013.5,0.72559411]
[1764494497608,0.577,3013.5,3012.8,0.001]
[1764494497756,0.085,3013.1,3012.8,0.001]
[1764494498155,0.5811,3013.1,3012.8,0.001]
[1764494499590,0.5811,3013.1,3012.8,3.32016303]
[1764494499791,0.5811,3013.1,3012.9,0.03419061]
[1764494500894,0.5811,3013.1,3012.9,0.001]
[1764494501277,0.5811,3013.1,3013.0,0.03418951]
[1764494502062,0.5811,3013.1,3013.0,3.35314072]
[1764494503663,0.5811,3013.1,3013.0,6.56595839]
[1764494503986,0.085,3013.1,3013.0,6.56595839]
[1764494504389,0.5811,3013.1,3013.0,6.56595839]
[1764494504972,0.5811,3013.1,3013.0,3.35314072]
[1764494510297,0.085,3013.1,3013.0,6.53276888]
[1764494510477,0.4961,3013.3,3013.0,11.32289259]
[1764494510673,0.4961,3013.3,3013.0,11.28970308]
[1764494511668,0.4961,3013.3,3013.1,0.03318841]
[1764494512169,0.498,3013.2,3013.1,0.03318841]
[1764494513382,0.498,3013.2,3013.1,3.31884106]
[1764494513599,0.9846,3013.2,3013.1,3.31884106]
[1764494514502,0.9846,3013.2,3013.1,3.35202947]
[1764494514701,0.9846,3013.2,3013.1,3.31884106]
[1764494514908,0.9846,3013.2,3013.1,3.35202947]
[1764494515408,0.9846,3013.2,3013.1,3.31884106]
[1764494516614,0.9846,3013.2,3013.0,0.001]
[1764494516915,0.5768,3013.1,3013.0,0.001]
[1764494517119,1.71950861,3013.1,3013.0,0.001]
[1764494517299,1.61950861,3013.1,3013.0,0.001]
[1764494517507,4.93834967,3013.1,3013.0,0.001]
[1764494518785,5.03834967,3013.1,3013.0,0.001]
[1764494519313,5.03834967,3013.1,3012.9,0.001]
[1764494519314,12.19560251,3013.1,3012.9,0.001]
[1764494519612,5.83938474,3013.0,3012.9,0.001]
[1764494521502,0.1,3012.8,3012.7,0.001]
[1764494521701,3.99851767,3012.8,3012.7,0.001]
[1764494521910,4.48511767,3012.8,3012.7,0.001]
[1764494522126,5.7846557,3012.8,3012.7,0.001]
[1764494522711,5.6846557,3012.8,3012.7,0.001]
[1764494522918,5.7846557,3012.8,3012.7,0.001]
[1764494523125,6.51024981,3012.8,3012.7,0.001]
[1764494523497,9.82942134,3012.8,3012.7,0.001]
[1764494524497,6.61660367,3012.8,3012.7,0.001]
[1764494528925,3.08743214,3012.8,3012.7,0.001]
[1764494529222,5.00706564,3012.8,3012.7,0.001]
[1764494529529,5.21706564,3012.8,3012.7,0.001]
[1764494531336,1.89789411,3012.8,3012.7,0.001]
[1764494531522,5.21706564,3012.8,3012.7,0.001]
[1764494531723,5.00706564,3012.8,3012.7,0.001]
[1764494532029,2.03369995,3012.8,3012.7,0.001]
[1764494532196,0.9623,3012.8,3012.7,0.001]
[1764494532392,0.4757,3012.8,3012.7,0.001]
[1764494533927,0.9623,3012.8,3012.7,0.001]
[1764494538441,0.4757,3012.8,3012.7,0.001]
[1764494538744,0.6745,3013.2,3012.7,0.4816]
[1764494538942,0.21,3013.1,3012.7,0.4816]
[1764494539246,0.6966,3013.1,3012.7,0.4816]
[1764494539448,1.44879572,3013.1,3012.7,0.001]
[1764494539633,0.4866,3013.0,3012.7,0.001]
[1764494539819,0.4824,3012.8,3012.7,0.001]
[1764494542011,0.4844,3012.8,3012.7,0.001]
[1764494542936,0.9711,3012.8,3012.7,0.001]
[1764494543435,0.4844,3012.8,3012.7,0.001]
[1764494546547,0.002,3012.8,3012.7,0.001]
[1764494546869,0.002,3012.8,3012.7,0.9949]
[1764494547031,0.002,3012.8,3012.7,0.001]
[1764494547222,0.4733,3012.8,3012.7,0.001]
[1764494547725,0.002,3012.8,3012.7,0.4983]
[1764494549427,0.002,3012.8,3012.7,3.8175817]
[1764494551460,0.002,3012.8,3012.7,4.69613987]
[1764494552828,0.002,3012.8,3012.7,4.72933268]
[1764494553833,0.002,3012.8,3012.7,5.45492679]
[1764494557356,0.002,3012.8,3012.7,4.92513398]
[1764494557558,0.002,3012.8,3012.7,4.54317581]
[1764494558756,0.002,3012.8,3012.7,5.03977581]
[1764494560238,0.002,3012.8,3012.7,4.54317581]
[1764494563263,0.002,3012.8,3012.7,5.07296862]
[1764494563438,0.002,3012.8,3012.7,5.72535374]
[1764494565767,0.4733,3012.8,3012.7,3.3202817]
[1764494566357,0.4733,3012.8,3012.7,0.001]
[1764494566535,0.96,3012.8,3012.7,0.001]
[1764494566735,0.96,3012.8,3012.7,3.3202817]
[1764494567162,0.96,3012.8,3012.7,0.001]
[1764494567333,0.96,3012.8,3012.7,3.3202817]
[1764494568247,0.96,3012.8,3012.7,0.001]
[1764494570591,0.002,3012.8,3012.7,0.4983]
[1764494570771,0.002,3012.8,3012.7,0.001]
[1764494571233,0.4733,3012.8,3012.7,0.001]
[1764494571436,0.96,3012.8,3012.7,0.001]
[1764494577990,0.002,3012.8,3012.7,0.4536]
[1764494578292,0.002,3012.8,3012.7,0.9215]
[1764494579496,0.002,3012.8,3012.7,4.2407817]
[1764494579695,0.002,3012.8,3012.7,6.47415857]
[1764494579992,0.002,3012.8,3012.7,6.06865457]
[1764494580192,0.002,3012.8,3012.7,6.27865457]
[1764494580965,0.002,3012.8,3012.7,9.49607889]
[1764494583995,0.002,3012.8,3012.7,6.27865457]
[1764494584363,0.002,3012.8,3012.7,5.60075457]
[1764494584974,0.002,3012.8,3012.7,4.2545817]
[1764494585394,0.002,3012.8,3012.7,3.3202817]
[1764494587164,0.4543,3012.8,3012.7,3.3202817]
[1764494587461,0.002,3012.8,3012.7,3.3202817]
[1764494588098,0.002,3012.8,3012.7,3.7728817]
[1764494591902,0.4543,3012.8,3012.7,3.3202817]
[1764494592606,0.936,3012.8,3012.7,0.001]
[1764494593507,1.37571537,3012.8,3012.7,0.001]
[1764494599124,0.936,3012.8,3012.7,0.001]
[1764494600209,0.002,3012.8,3012.7,0.4536]
[1764494601927,0.002,3012.8,3012.7,0.001]
[1764494603125,0.002,3012.8,3012.7,0.4951]
[1764494603709,0.4952,3012.8,3012.7,0.001]
[1764494604933,0.9926,3012.8,3012.7,0.001]
[1764494605118,0.4952,3012.8,3012.7,0.001]
[1764494606524,0.9926,3012.8,3012.7,0.001]
[1764494606704,0.002,3012.8,3012.7,0.001]
[1764494607318,0.9926,3012.8,3012.7,0.001]
[1764494607700,0.4952,3012.8,3012.7,0.001]
[1764494611734,0.002,3012.8,3012.7,0.4951]
[1764494613441,0.002,3012.8,3012.7,0.9766]
[1764494613628,0.002,3012.8,3012.7,4.32907451]
[1764494614529,0.002,3012.8,3012.7,3.84757451]
[1764494615542,0.9926,3012.8,3012.7,0.001]
[1764494615736,0.9926,3012.8,3012.7,0.03419281]
[1764494616234,0.4952,3012.8,3012.7,3.35347451]
[1764494616839,0.002,3012.8,3012.7,4.2958817]
[1764494617038,0.002,3012.8,3012.7,5.37915281]
[1764494617923,0.49576816,3013.3,3012.7,8.73162732]
[1764494618243,0.212,3013.4,3012.7,8.73162732]
[1764494618244,0.212,3013.4,3012.7,8.69843451]
[1764494619122,0.002,3013.4,3012.7,8.69843451]
[1764494619324,0.002,3013.4,3012.7,5.37915281]
[1764494619325,3.32051465,3013.4,3012.7,5.37915281]
[1764494619523,3.32051465,3013.4,3012.8,4.18903902]
[1764494619942,0.4974,3013.3,3012.8,4.18903902]
[1764494622850,0.4932,3012.9,3012.8,4.18903902]
[1764494627041,0.002,3013.2,3012.8,4.68313902]
[1764494627247,0.4974,3013.1,3012.8,8.00231055]
[1764494627415,0.4974,3013.1,3012.9,0.80033106]
[1764494627916,0.4932,3013.0,3012.9,0.80033106]
[1764494629957,0.4932,3013.0,3012.9,4.11939242]
[1764494630449,0.4932,3013.0,3012.9,0.80033106]
[1764494630685,0.4932,3013.0,3012.9,4.11939242]
[1764494630858,0.002,3013.2,3012.9,7.93255378]
[1764494631023,0.002,3013.2,3013.1,0.4941]
[1764494631527,0.4952,3013.2,3013.0,0.82644489]
[1764494632055,0.4952,3013.2,3013.1,3.31884106]
[1764494632256,0.9926,3013.2,3013.1,3.31884106]
[1764494632452,0.002,3013.2,3013.1,3.31884106]
[1764494632619,0.4708,3013.2,3013.1,3.31884106]
[1764494633024,0.9614,3013.2,3013.1,3.31884106]
[1764494635951,0.4708,3013.2,3013.1,3.31884106]
[1764494636453,0.9614,3013.2,3013.1,3.31884106]
[1764494636656,0.002,3013.2,3013.1,4.51285333]
[1764494636952,0.002,3013.2,3013.1,8.45518582]
[1764494637154,0.002,3013.2,3013.1,8.42199741]
[1764494641054,0.4708,3013.2,3013.1,4.06195333]
[1764494641354,0.4708,3013.2,3013.1,3.31884106]
[1764494641557,0.9614,3013.2,3013.1,3.31884106]
[1764494641853,0.9614,3013.2,3012.9,3.31906136]
[1764494642153,0.606,3013.1,3012.9,3.32006136]
[1764494643149,0.9559,3013.0,3012.9,0.001]
[1764494643338,0.9559,3013.0,3012.9,3.32003297]
[1764494644157,0.4653,3013.0,3012.9,0.001]
[1764494644454,0.9559,3013.0,3012.9,0.001]
[1764494649763,0.4653,3013.0,3012.9,0.001]
[1764494652143,0.9559,3013.0,3012.9,0.001]
[1764494655782,0.4653,3013.0,3012.9,0.001]
[1764494657870,0.9559,3013.0,3012.9,0.001]
[1764494662069,0.002,3013.2,3012.9,0.4519]
[1764494662686,0.48,3013.2,3012.9,0.4519]
[1764494662869,0.48,3013.2,3012.9,0.001]
[1764494663062,0.002,3013.2,3012.9,0.001]
[1764494663474,0.48,3013.2,3012.9,0.001]
[1764494665354,0.4975,3013.0,3012.9,0.001]
[1764494665782,0.9755,3013.0,3012.9,0.001]
[1764494671696,0.4975,3013.0,3012.9,0.001]
[1764494671999,0.4821,3013.2,3012.9,0.001]
[1764494672000,0.002,3013.2,3012.9,0.4792]
[1764494672283,0.4821,3013.2,3012.9,0.4792]